Cogmind - Beta 13 @@@ ROGUE MODE // 2024.04.28 @ 00:07:43 Player: AntinDisguise Result: Destroyed by H-61 Shepherd with Heavy Assault Cannon Performance ------------- Evolutions (2) 1000 Regions Visited (4) 800 Robots Destroyed (51) 255 Value Destroyed (992) 992 Prototype IDs (4) 80 Alien Tech Used (0) 0 Bonus (0) 0 TOTAL SCORE: 3127 Bonus ------- None Cogmind --------- Core Integrity 0/550 Matter 290/300 Energy 31/100 System Corruption 0% Temperature Cool (9) Movement Core (750) Ox14 Location -8/Materials Parts ------- > --- POWER (2) -------- (None) > --- PROPULSION (2) --- (None) > --- UTILITY (4) ------ High-capacity Storage Unit Sensor Array > --- WEAPON (3) ------- Beam Rifle > --- INVENTORY (20) --- Improved Treads Improved Treads Improved Treads Sensor Array Grenade Launcher Concussive RPG (1) Peak State ------------ > --- POWER ------------ Improved Ion Engine > --- PROPULSION ------- Light Treads Improved Treads > --- UTILITY ---------- Heat Sink High-capacity Storage Unit Sensor Array Experimental Sensor Array > --- WEAPON ----------- Improved EM Shotgun Improved EM Shotgun Improved EM Shotgun > --- INVENTORY -------- Improved Treads Improved Treads Improved Treads Improved Treads Improved Treads Sensor Array Beam Rifle Beam Rifle Grenade Launcher [Rating: 27] Favorites ----------- Power Ion Engine Engine Ion Engine Propulsion Light Treads Treads Light Treads Wheel Compact Wheel Utility Heat Sink Device Heat Sink Storage High-capacity Storage Unit Protection Backup Plating I Weapon Heavy EM Pulse Gun Energy Gun Heavy EM Pulse Gun Ballistic Gun Light Assault Rifle Ballistic Cannon Battle Cannon Build | -11 -10 -10 -9 -8 ------- Run | Yrd Mat Min Mat Mat Slots Evolved 4 | . . . 2 2 Power 1 | . . . 1 . Propulsion . | . . . . . Utility 2 | . . . 1 1 Weapon 1 | . . . . 1 Parts Attached 53 | 6 14 8 13 12 Power 7 | 1 1 2 2 1 Engine 7 | 1 1 2 2 1 Core . | . . . . . Reactor . | . . . . . Propulsion 16 | 2 4 . 4 6 Treads 12 | . 2 . 4 6 Leg . | . . . . . Wheel 4 | 2 2 . . . Hover . | . . . . . Flight . | . . . . . Utility 11 | 1 6 1 1 2 Device 7 | . 3 1 1 2 Storage 4 | 1 3 . . . Processor . | . . . . . Hackware . | . . . . . Protection . | . . . . . Artifact . | . . . . . Weapon 19 | 2 3 5 6 3 Energy Gun 17 | 2 3 4 5 3 Energy Cannon . | . . . . . Ballistic Gun 1 | . . . 1 . Ballistic Cannon 1 | . . 1 . . Launcher . | . . . . . Special Weapon . | . . . . . Impact Weapon . | . . . . . Slashing Weapon . | . . . . . Piercing Weapon . | . . . . . Special Melee Weapon . | . . . . . Unidentified Prototypes 2 | . . . 1 1 Parts Lost 28 | . 3 5 10 10 Power 5 | . . 2 2 1 Propulsion 8 | . 1 . 4 3 Utility 5 | . 1 1 1 2 Weapon 10 | . 1 2 3 4 Highest Loss Streak 6 | . 1 2 4 6 To Critical Strikes . | . . . . . Average Slot Usage (%) 90 | . 96 98 81 81 Engine 11 | . 13 12 10 8 Treads 19 | . 9 28 21 17 Wheel 4 | . 17 . . . Device 14 | . 9 13 16 21 Storage 12 | . 13 14 11 9 Energy Gun 21 | . 27 20 12 25 Ballistic Gun 1 | . . . 7 . Ballistic Cannon 2 | . . 7 1 . Naked Turns . | . . . . . Heaviest Build 59 | 11 52 52 54 59 Greatest Support 46 | 26 40 40 46 46 Greatest Overweight (x) 8 | . 8 1 2 1 Average Overweight (x) . | . . 1 1 . Largest Inventory Capacity 20 | 8 20 20 20 20 Average Capacity 18 | 6 13 20 20 20 Most Carried 14 | 4 13 14 12 12 Average Carried 9 | 1 5 12 9 9 Final Capacity 20 | 8 20 20 20 20 Final Carried 12 | 2 12 10 12 6 Class Distribution -------------------- 66% | Mutant 15% | Scavenger-Mutant 13% | Scavenger-Skirmisher 4% | Gunner Dominant Class ---------------- Mutant | -10/Materials Mutant | -10/Mines Scavenger-Mutant | -9/Materials Scavenger-Skirmisher | -8/Materials Resources | -11 -10 -10 -9 -8 ----------- Run | Yrd Mat Min Mat Mat Matter Collected 908 | 260 153 184 211 100 Remotely 20 | . 20 . . . Salvage Created 1752 | . 443 497 561 251 Parts 100 | . 24 25 32 19 Haulers Intercepted 3 | . 2 . 1 . Recyclers Shooed 1 | . . . 1 . Parts Field Recycled . | . . . . . Retrieved Matter . | . . . . . Parts Self-Destructed . | . . . . . Prevented . | . . . . . Kills | -11 -10 -10 -9 -8 ------- Run | Yrd Mat Min Mat Mat Combat Hostiles Destroyed 35 | . 9 9 11 6 Guns 27 | . 9 5 10 3 Cannons 5 | . . 4 1 . AOE 3 | . . . . 3 Classes Destroyed 10 | . 7 . 2 1 Worker 3 | . 1 1 . 1 Builder 1 | . 1 . . . Hauler 3 | . 2 . 1 . Recycler 5 | . 1 2 1 1 Watcher 4 | . 2 . 2 . Swarmer 17 | . 8 2 4 3 Cutter 2 | . . . . 2 Grunt 11 | . 1 7 3 . Duelist 1 | . . . 1 . Sentry 4 | . . . 3 1 Best Kill Streak 4 | . 4 3 2 3 Combat Bots Only 3 | . 3 3 2 3 Max Kills in Single Turn 3 | . 1 2 1 3 Gunslinging . | . . . . . Exploded 3 | . . . . 3 Melee . | . . . . . Uniques/NPCs Destroyed . | . . . . . Combat | -11 -10 -10 -9 -8 -------- Run | Yrd Mat Min Mat Mat Hostile Shots Fired 358 | . 53 71 137 97 Missed 87 | . 14 19 30 24 Damage Taken 3754 | . 333 637 1274 1510 Core 999 | . 54 90 271 584 Absorbed by Shields . | . . . . . Core Remaining (%) 58 | 100 . 42 32 . Volleys Fired 160 | . 46 27 71 16 Largest 3 | . 2 2 2 3 Hottest 135 | . 90 90 112 135 Shots Fired 295 | . 85 50 123 37 Gun 270 | . 85 32 116 37 Cannon 25 | . . 18 7 . Launcher . | . . . . . Special . | . . . . . Kinetic 69 | . . 18 51 . Thermal 135 | . 79 . 52 4 Explosive . | . . . . . Electromagnetic 91 | . 6 32 20 33 Robot Hit Streak 15 | . 9 5 15 9 Robot Miss Streak 6 | . 5 5 6 4 Penetration Max . | . . . . . Secondary Targets 3 | . 1 . 2 . Max Gunslinging Chain 1 | . 1 . 1 . Shots Hit Robots 176 | . 43 24 81 28 Core Hits 78 | . 20 13 29 16 Critical Kills . | . . . . . Critical Parts Destroyed . | . . . . . Critical Strikes 7 | . 3 1 2 1 Burn 5 | . 3 . 1 1 Blast 2 | . . 1 1 . Melee Attacks . | . . . . . Impact . | . . . . . Slashing . | . . . . . Piercing . | . . . . . Sneak Attacks . | . . . . . Combat Hostiles . | . . . . . Follow-up Attacks . | . . . . . Damage Inflicted 2583 | . 542 520 995 526 Guns 2096 | . 542 265 891 398 Cannons 300 | . . 196 104 . Explosions 187 | . . 59 . 128 Melee . | . . . . . Ramming . | . . . . . Kinetic 543 | . . 196 347 . Thermal 1161 | . 476 59 469 157 Explosive . | . . . . . Electromagnetic 879 | . 66 265 179 369 Impact . | . . . . . Slashing . | . . . . . Piercing . | . . . . . Highest Corruption 4 | . 4 4 . . Average Corruption 3 | . 3 4 . . Corruption Purged . | . . . . . Corruption Blocked . | . . . . . Effects 45 | . 13 32 . . Message Errors 11 | . 2 9 . . Matter Fused 14 | . 8 6 . . Energy Discharges 8 | . 1 7 . . Parts Rejected 1 | . . 1 . . Parts Fused 1 | . . 1 . . Data Loss (minor) 3 | . 1 2 . . Data Loss (major) 2 | . . 2 . . Misfires 3 | . . 3 . . Alerts 1 | . . 1 . . Weapon Failures 1 | . 1 . . . Overload Shots . | . . . . . Overflow Damage 29 | . . 9 . 20 Projectiles 9 | . . 9 . . Explosions 20 | . . . . 20 Melee . | . . . . . Knockbacks 5 | . . 5 . . Impact . | . . . . . Kinetic 5 | . . 5 . . Secondary . | . . . . . Self-Inflicted Damage 156 | . . . . 156 Shots 3 | . . . . 3 Rammed 1 | . . . . 1 Targets Rammed 1 | . . . . 1 Kicked . | . . . . . Crushed . | . . . . . Highest Temperature 225 | . 165 45 60 225 Average Temperature 38 | . 60 17 14 70 Received Heat Transfer 873 | . 36 312 318 207 Siege Activations . | . . . . . Robots Corrupted . | . . . . . Combat Hostiles . | . . . . . Parts Fried 3 | . . . . 3 Impact Corruptions . | . . . . . Robots Melted . | . . . . . Combat Hostiles . | . . . . . Parts Melted 9 | . 5 . 3 1 Heat Transferred 3062 | . 1427 50 1237 348 Parts Sabotaged . | . . . . . Parts Stolen . | . . . . . Parts Stripped . | . . . . . Power Chain Reactions 3 | . . 1 . 2 Alert | -11 -10 -10 -9 -8 ------- Run | Yrd Mat Min Mat Mat Peak Influence 251 | . 221 102 166 251 Initial 35 | . . 35 15 24 Average 54 | . 87 29 61 44 Maximum Alert Level 1 | . 1 . . 1 Low Security (%) 98 | 100 99 100 100 95 Level 1 1 | . . . . 4 Level 2 . | . . . . . Level 3 . | . . . . . Level 4 . | . . . . . Level 5 . | . . . . . High Security . | . . . . . Max Security . | . . . . . Squads Dispatched 5 | . 1 1 . 3 Investigation 2 | . 1 1 . . Extermination . | . . . . . Reinforcement 3 | . . . . 3 Assault . | . . . . . Garrison . | . . . . . Intercept . | . . . . . Searches Triggered . | . . . . . Construction Impeded . | . . . . . Haulers Reinforced . | . . . . . Active Scanning Responses . | . . . . . Cargo Convoy Interrupts . | . . . . . Stealth | -11 -10 -10 -9 -8 --------- Run | Yrd Mat Min Mat Mat Distress Signals 5 | . 2 . 3 . Communications Jammed . | . . . . . Distress Signals . | . . . . . Times Spotted 58 | . 19 10 15 14 Peak Tracking Total 6 | . 6 3 5 6 Tactical Retreats 3 | . . . 1 2 Traps | -11 -10 -10 -9 -8 ------- Run | Yrd Mat Min Mat Mat Traps Triggered 5 | . 4 . . 1 Indirectly . | . . . . . Trap Hack Attempts . | . . . . . Triggered . | . . . . . Disarmed . | . . . . . Reprogrammed . | . . . . . Reused . | . . . . . Traps Extracted . | . . . . . Installed . | . . . . . Triggered . | . . . . . Machines | -11 -10 -10 -9 -8 ---------- Run | Yrd Mat Min Mat Mat Machines Disabled 4 | . . 1 1 2 Max in Single Turn 2 | . . 1 1 2 Machines Repaired . | . . . . . Machines Dismantled . | . . . . . Machines Sabotaged . | . . . . . Overloaded Fab Kills . | . . . . . Hacking | -11 -10 -10 -9 -8 --------- Run | Yrd Mat Min Mat Mat Machines Accessed 9 | . 6 1 1 1 Terminals 8 | . 5 1 1 1 Fabricators . | . . . . . Repair Stations 1 | . 1 . . . Recycling Units . | . . . . . Scanalyzers . | . . . . . Garrison Access . | . . . . . Total Hacks 15 | . 10 2 1 2 Successful 8 | . 6 . 1 1 Failed 7 | . 4 2 . 1 Catastrophic 1 | . . 1 . . Database Lockouts . | . . . . . Manual . | . . . . . Terminals 13 | . 8 2 1 2 Fabricators . | . . . . . Repair Stations 2 | . 2 . . . Recycling Units . | . . . . . Scanalyzers . | . . . . . Garrison Access . | . . . . . Terminal Hacks 7 | . 5 . 1 1 Prototype ID Bank 1 | . 1 . . . Branch Access Points 1 | . 1 . . . Emergency Access Points 2 | . 1 . 1 . Zone Layout 3 | . 2 . . 1 Fabricator Hacks . | . . . . . Repair Station Hacks 1 | . 1 . . . Refit 1 | . 1 . . . Recycling Unit Hacks . | . . . . . Scanalyzer . | . . . . . Garrison Access Hacks . | . . . . . Unauthorized Hacks . | . . . . . Terminals . | . . . . . Fabricators . | . . . . . Repair Stations . | . . . . . Recycling Units . | . . . . . Scanalyzers . | . . . . . Garrison Access . | . . . . . Data Cores Recovered . | . . . . . Used . | . . . . . Hacking Detections 5 | . 3 1 . 1 Full Trace Events 1 | . . 1 . . Feedback Events . | . . . . . Feedback Blocked . | . . . . . Robot Schematics Acquired . | . . . . . Robots Built . | . . . . . Authchips . | . . . . . Time . | . . . . . Total Robot Build Rating . | . . . . . Part Schematics Acquired . | . . . . . Parts Built . | . . . . . Authchips . | . . . . . Time . | . . . . . Total Part Build Rating . | . . . . . Parts Repaired . | . . . . . Time . | . . . . . Parts Recycled . | . . . . . Recycled Matter . | . . . . . Retrieved Matter . | . . . . . Retrieved Components . | . . . . . Parts Scanalyzed . | . . . . . Part Schematics Acquired . | . . . . . Parts Damaged . | . . . . . Bothacking | -11 -10 -10 -9 -8 ------------ Run | Yrd Mat Min Mat Mat Used RIF Installer . | . . . . . Robots Hacked . | . . . . . Non-combat . | . . . . . Combat . | . . . . . Robot Hacks Applied . | . . . . . Relay Couplers Released . | . . . . . Fabnet Peak Effective % . | . . . . . Robots Rewired . | . . . . . Allies Hacked . | . . . . . Hacks Repelled . | . . . . . Allies | -11 -10 -10 -9 -8 -------- Run | Yrd Mat Min Mat Mat Total Allies . | . . . . . Largest Group . | . . . . . Highest-Rated Group . | . . . . . Highest-Rated Ally . | . . . . . Total Orders . | . . . . . Ally Attacks . | . . . . . Total Damage . | . . . . . Kills . | . . . . . Allies Corrupted . | . . . . . Allies Melted . | . . . . . Intel | -11 -10 -10 -9 -8 ------- Run | Yrd Mat Min Mat Mat Robot Analysis Total . | . . . . . Derelict Logs Recovered 3 | . . 3 . . Drone Launches . | . . . . . Drone Recoveries . | . . . . . Exploration | -11 -10 -10 -9 -8 ------------- Run | Yrd Mat Min Mat Mat Turns Passed 4147 | 55 1053 1288 902 849 Spaces Moved 1854 | 45 711 497 282 319 Core 10 | 8 2 . . . Treads 1279 | . 181 497 282 319 Legs . | . . . . . Wheels 565 | 37 528 . . . Hover . | . . . . . Flight . | . . . . . Fastest Speed 50 | 50 90 240 240 160 Average Speed 190 | 82 120 240 240 238 Slowest Speed 450 | 90 450 240 320 240 Overloaded Moves . | . . . . . Propulsion Burnouts . | . . . . . Robots Hopped . | . . . . . Cave-ins Triggered . | . . . . . Exploration Rate (%) 46 | 3 96 83 31 21 Regions Visited 4 Branch Regions 1 Pre-discovered Areas 1 | . . 1 . . Known Exits Taken 1 | . 1 . . . Unknown Exits Taken 3 | 1 . 1 1 . Scrap Searched 1 | . . 1 . . Spaces Dug . | . . . . . Terrain Destroyed 38 | . . 2 . 36 Melee . | . . . . . Projectile 1 | . . 1 . . AOE 37 | . . 1 . 36 Terrain Rammed . | . . . . . Walls Destroyed . | . . . . . Machines Disabled . | . . . . . Actions | -11 -10 -10 -9 -8 --------- Run | Yrd Mat Min Mat Mat Total 2201 | 63 829 546 393 370 Wait 68 | 3 27 7 13 18 Move 1850 | 44 710 496 281 319 Hop . | . . . . . Pick Up 55 | 9 23 6 13 4 Fast Attach 1 | . 1 . . . Attach 46 | 6 12 6 12 10 Detach 1 | . . . 1 . Swap 6 | . 1 2 1 2 Drop 13 | 1 9 2 1 . Fire 160 | . 46 27 71 16 Melee . | . . . . . Ram 1 | . . . . 1 Kick . | . . . . . Crush . | . . . . . Escape Stasis . | . . . . . Rewire . | . . . . . Trap . | . . . . . Miscellaneous . | . . . . . Route ------- -11/Scrapyard -10/Materials (discovered 5 exits: *Mat x3 / *Min x2) -10/Mines (discovered 2 exits: *Mat / [*Exi]) -9/Materials -8/Materials History --------- Turn | Location | Event 6 | -11/Scrapyard | Discovered new exit (range 15) 56 | -11/Scrapyard | Entered Materials 234 | -10/Materials | Discovered new exit (range 7) 325 | -10/Materials | Build established: Mutant 408 | -10/Materials | Discovered new exit (range 12) 410 | -10/Materials | Identified exit to Mines 500 | -10/Materials | Discovered new exit (range 3) 698 | -10/Materials | Discovered new exit (range 9) 1109 | -10/Materials | Entered Mines 1155 | -10/Mines | Learned Materials stockpile data 1229 | -10/Mines | Found a damaged Exp. Sensor Array with a note attached 1237 | -10/Mines | Found Prototype Device 1356 | -10/Mines | YI-UF0 nonchalantly dropped a Grenade Launcher on the ground 1634 | -10/Mines | Deemed a non-threat by the Exiles lab entrance 1637 | -10/Mines | Discovered new exit (range 5) 1729 | -10/Mines | A weapon hastily lodged in a ceiling crevice suddenly fell to the ground 1778 | -10/Mines | Core integrity fell below 50% 2105 | -10/Mines | Learned location of Recycling (-7) 2143 | -10/Mines | Discovered new exit (range 12) 2211 | -10/Mines | Learned Materials trap positions 2397 | -10/Mines | Entered Materials 2397 | -9/Materials | Evolved 2 slots: Power x1, Utility x1 2398 | -9/Materials | Loaded intel: 15 trap records 2608 | -9/Materials | Lost 4 parts (2n2w) 2879 | -9/Materials | Build established: Scavenger-Mutant 2915 | -9/Materials | Core integrity fell below 50% 3275 | -9/Materials | Discovered new exit (range 11) 3299 | -9/Materials | Entered another Materials area 3299 | -8/Materials | Evolved 2 slots: Utility x1, Weapon x1 3508 | -8/Materials | Identified Exp. Sensor Array 3776 | -8/Materials | Build established: Scavenger-Skirmisher 4111 | -8/Materials | Lost 4 parts (1p1n1u1w) 4137 | -8/Materials | Core integrity fell below 50% 4144 | -8/Materials | Core integrity fell below 20% 4148 | -8/Materials | Destroyed by H-61 Shepherd with Heavy Assault Cannon Last Messages --------------- Imp. EM Shotgun destroyed. U-05 Engineer destroyed. K-01 Serf collects debris. X-57 Shotgunner Shotgun blasted off. X-57 Shotgunner destroyed. K-01 Serf collects debris. Critical hit (Burn: +37). K-01 Serf collects debris. Imp. Treads destroyed. K-01 Serf collects debris. Imp. Treads destroyed. Penetrated by Slug. K-01 Serf collects debris. Y-45 Defender suffers critical hit (Burn). Beam Rifle destroyed. Knocked back. Exp. Sensor Array destroyed. K-01 Serf collects debris. Slammed into Y-45 Defender. Penetrated by Slug. Map ----- +----------------------------------------------------+ | ????????????????????????????????????????????? | | ????????????????????????????????????????????? | | ????????????????????????????????????????????? | | ????????????????????????????????????????????? | | ????????????????????????????????????????????? | | ????????????????????????????????????????????? | | ????????????????????????????????????????????? | | ????????????????????????????????????????????? | | ????????????????????????????????????????????? | | ????????????????????????????????????????????? | | ????????????????????!???????????????????????? | | ????????????????????!???????????????????????? | | ???????????????????? ???????????????????????? | | ???????????????????? ???????????????????????? | | ???????????????? ??? ???????????????????????? | | ???????????????? ???+#??????????????????????? | | ???????????????? ??? #??????????????????????? | | ????????????????/?##+##?????????????????????? | | ???????????????# ?# #?????????????????????? | | ???????????????# ?#k !#?????????????????????? | | ???????????????# ?# xH#?????????????????????? | | ???????????????# ##k #?????????????????????? | | ???????????????# ##rsk#?????????????????????? | | ???????????????# ##!!k#?????????????????????? | | ???????????????# ##=!%#?? ##????????????????? | | ??????????????## ##%@Y# ################## | | ??????????????+ %g%=%%% | | ??????????????## ![*%! | | ???????????????# ;;### | | ??????????#+???# # #??#################+#### | | ????????# ### ##############??# # | | ????????+ + #??# """ # | | ????????# ## " # """ #??# """"" # | | ????????# ### # ! """ #??# """"" # | | ????????## ####+# % """ #??# """"" # | | ?????????# ?# ! ! != #??# """ # | | ????????????+ "" ] #??# ## | | ????????????# "Y * ########?# #? | | ????????????# / # ! ! #?# #? | | ????????????# # #?#+########? | | ????????????# # ### ######### | | ????????????# # ## # # | | ????????????# [ # ####"+### # """ | | ????????????########### % %[ + """ | | ??????????????????????#####=##"## # """ | | ??????????????????????????####### # | | ????????????????????????????????####### | | ??????????????????????????????????????####### | | ????????????????????????????????????????????? | | | +----------------------------------------------------+ Best States ------------- Heat Dissipation 41 Energy Generation 15 Energy Capacity 400 Matter Stores 300 Matter Capacity 300 Sight Range 16 Robot Scan Range 20 Terrain Scan Density 10 Armor Coverage 80 Evasion (%) 42 Recoil Reduction 2 Item Schematics ----------------- None Robot Schematics ------------------ None Fabricated ------------ Nothing Alien Tech Used ----------------- None Achievements -------------- None Challenges ------------ None Game ------ Seed LayeredPlasmaInterrupter Manual? 0 Play Time 00:26:26 Cumulative 29.2 hours Start 2024.04.27 @ 23:41:54 End 2024.04.28 @ 00:07:43 Sessions 1 Manual Loads 0 Difficulty Rogue Special Mode None Game No. 80 Rogue 78 Adventurer 2 Explorer 0 Win Type - Total 0 Types 0/0/0/0/0/0/0/0/0 Lore% 22 Gallery% 31 Achievement% 23 Wizard Run 0 Options --------- Layout 1 ASCII 0 Keyboard 0 Movement Mouse Keybinds 0 Fullscreen 1 Font 16/SmallcapsGlow Map View 55x38 Zoom Use 20% Tactical HUD 0 Map Filters NONE Filters NONE Steam 1 RUN: 861ef5f0-736b-45fb-b075-ee937f5d86a6